Cogmind - Beta 15 @@@ ROGUE MODE // 2025.07.14 @ 12:53:48 Player: vilepis Result: Destroyed by S-10 Pest with Light Assault Rifle Performance ------------- Evolutions (1) 500 Regions Visited (2) 400 Robots Destroyed (38) 190 Value Destroyed (961) 961 Prototype IDs (7) 140 Alien Tech Used (0) 0 Bonus (0) 0 TOTAL SCORE: 2191 Bonus ------- None Cogmind --------- Core Integrity 0/400 Matter 245/300 Energy 263/265 System Corruption 0% Temperature Cool (0) Movement Rolling (80) Location -9/Materials Parts ------- > --- POWER (1) -------- Improved Ion Engine > --- PROPULSION (2) --- Wheel Wheel > --- UTILITY (4) ------ Visual Processing Unit Targeting Computer Hacking Suite > --- WEAPON (2) ------- Particle Gun > --- INVENTORY (5) ---- Ion Engine Improved Ion Engine Hover Unit Hover Unit Heavy Assault Rifle Peak State ------------ > --- POWER ------------ Improved Ion Engine > --- PROPULSION ------- Hover Unit Hover Unit > --- UTILITY ---------- Improved Heat Sink Visual Processing Unit Targeting Computer Light Armor Plating > --- WEAPON ----------- Particle Gun Heavy Assault Rifle > --- INVENTORY -------- Ion Engine Hover Unit Heavy Assault Rifle [Rating: 15] Favorites ----------- Power Ion Engine Engine Ion Engine Propulsion Compact Wheel Wheel Compact Wheel Hover Unit Hover Unit Utility Targeting Computer Device Improved Heat Sink Storage Small Storage Unit Processor Targeting Computer Hackware Hacking Suite Protection Power Shielding Weapon Heavy Assault Rifle Energy Gun Particle Gun Ballistic Gun Heavy Assault Rifle Build | -11 -10 -9 ------- Run | Yrd Mat Mat Slots Evolved 2 | . . 2 Power . | . . . Propulsion . | . . . Utility 2 | . . 2 Weapon . | . . . Parts Attached 36 | 7 6 23 Power 6 | 1 1 4 Engine 6 | 1 1 4 Core . | . . . Reactor . | . . . Propulsion 9 | 2 . 7 Treads . | . . . Leg . | . . . Wheel 4 | 2 . 2 Hover 5 | . . 5 Flight . | . . . Utility 8 | 1 2 5 Device 2 | . . 2 Storage 1 | 1 . . Processor 2 | . 1 1 Hackware 1 | . . 1 Protection 2 | . 1 1 Artifact . | . . . Weapon 13 | 3 3 7 Energy Gun 4 | 2 1 1 Energy Cannon . | . . . Ballistic Gun 9 | 1 2 6 Ballistic Cannon . | . . . Launcher . | . . . Special Weapon . | . . . Impact Weapon . | . . . Slashing Weapon . | . . . Piercing Weapon . | . . . Special Melee Weapon . | . . . Unidentified Prototypes 1 | . . 1 Parts Lost 13 | . 1 12 Power 2 | . . 2 Propulsion 5 | . . 5 Utility 2 | . . 2 Weapon 4 | . 1 3 Highest Loss Streak 5 | . 1 5 To Critical Strikes . | . . . Average Backups 1 | . 1 2 Power . | . . . Propulsion . | . . . Utility . | . . . Weapon . | . . . Tool/Special . | . . . Unused Backups 1 | . . 1 Power . | . . . Propulsion . | . . . Utility . | . . . Weapon 1 | . . 1 Tool/Special . | . . . Average Slot Usage (%) 86 | . 98 79 Engine 11 | . 14 9 Wheel 12 | . 28 2 Hover 8 | . . 14 Device 5 | . . 8 Storage 3 | . 8 . Processor 12 | . 5 16 Protection 8 | . 12 5 Energy Gun 6 | . 6 6 Ballistic Gun 17 | . 20 14 Peak Build Rating 15 | 6 7 15 Average Rating 9 | 4 6 11 On Entrance 4 | . 6 7 Naked Turns . | . . . Heaviest Build 17 | 13 14 17 Greatest Support 32 | 32 32 32 Greatest Overweight (x) 4 | . . 4 Average Overweight (x) . | . . . Largest Inventory Capacity 8 | 8 8 5 Average Capacity 5 | 6 6 5 Most Carried 5 | . 2 5 Average Carried 1 | . 1 2 Final Capacity 8 | 8 5 5 Final Carried 5 | . 1 5 Class Distribution -------------------- 68% | Mutant 31% | Scavenger-Mutant Dominant Class ---------------- Mutant | -10/Materials Scavenger-Mutant | -9/Materials Resources | -11 -10 -9 ----------- Run | Yrd Mat Mat Matter Collected 866 | 123 225 518 Remotely . | . . . Salvage Created 1194 | . 306 888 Parts 79 | . 13 66 Haulers Intercepted . | . . . Recyclers Shooed . | . . . Parts Field Recycled . | . . . Retrieved Matter . | . . . Parts Self-Destructed . | . . . Prevented . | . . . Kills | -11 -10 -9 ------- Run | Yrd Mat Mat Combat Hostiles Destroyed 31 | . 10 21 Guns 31 | . 10 21 Classes Destroyed 6 | . 2 4 Builder 1 | . . 1 Operator 2 | . . 2 Watcher 4 | . . 4 Swarmer 12 | . 5 7 Grunt 14 | . 5 9 Sentry 5 | . . 5 Best Kill Streak 6 | . 6 4 Combat Bots Only 6 | . 6 3 Max Kills in Single Turn 1 | . 1 1 Gunslinging . | . . . Exploded . | . . . Melee . | . . . Uniques/NPCs Destroyed . | . . . Combat | -11 -10 -9 -------- Run | Yrd Mat Mat Hostile Shots Fired 244 | . 68 176 Missed 82 | . 25 57 Hits 162 | . 43 119 Projectile 162 | . 43 119 Critical Strikes 4 | . . 4 Actively Blocked 1 | . . 1 Damage Taken 1771 | . 380 1391 Core 521 | . 118 403 Absorbed by Shields . | . . . Redirected to Shielding 40 | . 28 12 Core Remaining (%) 76 | 100 52 . Volleys Fired 133 | . 41 92 Largest 2 | . 2 2 Hottest 88 | . 60 88 Shots Fired 231 | . 68 163 Gun 231 | . 68 163 Cannon . | . . . Launcher . | . . . Special . | . . . Kinetic 185 | . 62 123 Thermal 40 | . . 40 Explosive . | . . . Electromagnetic 6 | . 6 . Robot Hit Streak 30 | . 13 30 Robot Miss Streak 4 | . 4 4 Penetration Max . | . . . Secondary Targets 6 | . 2 4 Max Gunslinging Chain 1 | . 1 1 Shots Hit Robots 155 | . 43 112 Core Hits 60 | . 19 41 Critical Kills 1 | . . 1 Critical Parts Destroyed 1 | . . 1 Critical Strikes 4 | . . 4 Burn 2 | . . 2 Destroy 2 | . . 2 Melee Attacks . | . . . Impact . | . . . Slashing . | . . . Piercing . | . . . Sneak Attacks . | . . . Combat Hostiles . | . . . Follow-up Attacks . | . . . Damage Inflicted 1991 | . 401 1590 Guns 1991 | . 401 1590 Cannons . | . . . Explosions . | . . . Melee . | . . . Ramming . | . . . Kinetic 1498 | . 320 1178 Thermal 412 | . . 412 Explosive . | . . . Electromagnetic 81 | . 81 . Impact . | . . . Slashing . | . . . Piercing . | . . . Highest Corruption . | . . . Average Corruption . | . . . Corruption Purged . | . . . Corruption Blocked . | . . . Overload Shots . | . . . Overflow Damage . | . . . Projectiles . | . . . Explosions . | . . . Melee . | . . . Knockbacks . | . . . Impact . | . . . Kinetic . | . . . Secondary . | . . . Self-Inflicted Damage . | . . . Shots . | . . . Rammed . | . . . Targets Rammed . | . . . Kicked . | . . . Crushed . | . . . Highest Temperature 277 | . 67 277 Average Temperature 55 | . 20 61 Received Heat Transfer 576 | . 87 489 Effects 2 | . . 2 Interference 2 | . . 2 Siege Activations . | . . . Martial Activations . | . . . Shielding Activations . | . . . Robots Disrupted . | . . . Combat Hostiles . | . . . Robots Corrupted . | . . . Combat Hostiles . | . . . Parts Fried . | . . . Impact Corruptions . | . . . Robots Melted . | . . . Combat Hostiles . | . . . Parts Melted 1 | . . 1 Heat Transferred 1090 | . . 1090 Parts Sabotaged . | . . . Parts Stolen . | . . . Parts Stripped . | . . . Power Chain Reactions . | . . . Alert | -11 -10 -9 ------- Run | Yrd Mat Mat Maximum Alert Level . | . . . Low Security (%) 100 | 100 100 100 Level 1 . | . . . Level 2 . | . . . Level 3 . | . . . Level 4 . | . . . Level 5 . | . . . High Security . | . . . Max Security . | . . . Peak Influence 120 | . 120 111 Initial . | . . . Average 48 | . 45 53 Influence Increases 871 | . 240 631 Destroy 0b10 Robot/C 620 | . 200 420 Destroy 0b10 Robot/NC 35 | . . 35 Destroy Leader 158 | . 40 118 Successful Hack 26 | . . 26 Destroy Structure 2 | . . 2 Lose Combat Pursuer 30 | . . 30 Influence Decreases 776 | . 240 536 Time Decay 595 | . 222 373 Lost Part 97 | . 10 87 Purge Threat 84 | . 8 76 Squads Dispatched 6 | . 3 3 Investigation 4 | . 1 3 Extermination . | . . . Reinforcement 2 | . 2 . Assault . | . . . Garrison . | . . . Intercept . | . . . Searches Triggered . | . . . Construction Impeded . | . . . Haulers Reinforced . | . . . Active Scanning Responses . | . . . Cargo Convoy Interrupts . | . . . Stealth | -11 -10 -9 --------- Run | Yrd Mat Mat Distress Signals 4 | . 2 2 Communications Jammed . | . . . Distress Signals . | . . . Times Spotted 61 | . 18 43 Peak Tracking Total 6 | . 5 6 Tactical Retreats 2 | . . 2 Traps | -11 -10 -9 ------- Run | Yrd Mat Mat Traps Triggered 1 | . 1 . Indirectly . | . . . Trap Hack Attempts . | . . . Triggered . | . . . Disarmed . | . . . Reprogrammed . | . . . Reused . | . . . Traps Extracted . | . . . Installed . | . . . Triggered . | . . . Machines | -11 -10 -9 ---------- Run | Yrd Mat Mat Machines Disabled . | . . . Max in Single Turn . | . . . Machines Repaired . | . . . Machines Dismantled . | . . . Machines Sabotaged . | . . . Overloaded Fab Kills . | . . . Hacking | -11 -10 -9 --------- Run | Yrd Mat Mat Machines Accessed 12 | . 2 10 Terminals 11 | . 2 9 Fabricators . | . . . Repair Stations . | . . . Recycling Units 1 | . . 1 Scanalyzers . | . . . Garrison Access . | . . . Total Hacks 27 | . 4 23 Successful 12 | . 1 11 Failed 15 | . 3 12 Catastrophic 4 | . 1 3 Database Lockouts . | . . . Manual 9 | . 4 5 Terminals 26 | . 4 22 Fabricators . | . . . Repair Stations . | . . . Recycling Units 1 | . . 1 Scanalyzers . | . . . Garrison Access . | . . . Terminal Hacks 10 | . 1 9 Robot Analysis 1 | . . 1 Prototype ID Bank 3 | . . 3 Branch Access Points 1 | . . 1 Alert Level 3 | . . 3 Unreport Threat 2 | . 1 1 Fabricator Hacks . | . . . Repair Station Hacks . | . . . Recycling Unit Hacks 1 | . . 1 Process 1 | . . 1 Scanalyzer . | . . . Garrison Access Hacks . | . . . Unauthorized Hacks 1 | . . 1 Terminals 1 | . . 1 Botnet 1 | . . 1 Fabricators . | . . . Repair Stations . | . . . Recycling Units . | . . . Scanalyzers . | . . . Garrison Access . | . . . Data Cores Recovered 2 | . . 2 Used 1 | . . 1 Hacking Detections 10 | . 2 8 Full Trace Events 5 | . 1 4 Feedback Events . | . . . Feedback Blocked . | . . . Robot Schematics Acquired . | . . . Robots Built . | . . . Authchips . | . . . Time . | . . . Total Robot Build Rating . | . . . Part Schematics Acquired . | . . . Parts Built . | . . . Authchips . | . . . Time . | . . . Total Part Build Rating . | . . . Parts Repaired . | . . . Time . | . . . Parts Recycled . | . . . Recycled Matter 27 | . . 27 Retrieved Matter . | . . . Retrieved Components . | . . . Parts Scanalyzed . | . . . Part Schematics Acquired . | . . . Parts Damaged . | . . . Bothacking | -11 -10 -9 ------------ Run | Yrd Mat Mat Used RIF Installer . | . . . Robots Hacked . | . . . Non-combat . | . . . Combat . | . . . Robot Hacks Applied . | . . . Relay Couplers Released . | . . . Fabnet Peak Effective % . | . . . Robots Rewired . | . . . Allies Hacked . | . . . Hacks Repelled . | . . . Allies | -11 -10 -9 -------- Run | Yrd Mat Mat Total Allies . | . . . Largest Group . | . . . Highest-Rated Group . | . . . Highest-Rated Ally . | . . . Total Orders . | . . . Ally Attacks . | . . . Total Damage . | . . . Kills . | . . . Allies Corrupted . | . . . Allies Melted . | . . . Intel | -11 -10 -9 ------- Run | Yrd Mat Mat Active Infowar (turns) 475 | . . 475 Optics 475 | . . 475 Robot Analysis Total 1 | . . 1 Derelict Logs Recovered . | . . . Drone Launches . | . . . Drone Recoveries . | . . . Exploration | -11 -10 -9 ------------- Run | Yrd Mat Mat Turns Passed 1632 | 44 616 972 Spaces Moved 993 | 36 427 530 Core 11 | 4 . 7 Treads . | . . . Legs . | . . . Wheels 524 | 32 427 65 Hover 458 | . . 458 Flight . | . . . Fastest Speed 50 | 50 100 56 Average Speed 107 | 94 100 113 Slowest Speed 250 | 100 100 250 Overloaded Moves . | . . . Propulsion Burnouts . | . . . Robots Hopped . | . . . Potential Cave-ins . | . . . Cave-ins Triggered . | . . . Exploration Rate (%) 44 | 3 79 51 Regions Visited 2 Branch Regions . Pre-discovered Areas . | . . . Known Exits Taken . | . . . Unknown Exits Taken 2 | 1 1 . Scrap Searched . | . . . Spaces Dug . | . . . Terrain Destroyed . | . . . Melee . | . . . Projectile . | . . . AOE . | . . . Terrain Rammed . | . . . Walls Destroyed . | . . . Machines Disabled . | . . . Actions | -11 -10 -9 --------- Run | Yrd Mat Mat Total 1328 | 42 557 729 Wait 158 | . 83 75 Move 991 | 35 426 530 Hop . | . . . Pick Up 1 | . . 1 Fast Attach 22 | 6 2 14 Attach . | . . . Detach . | . . . Swap 16 | 1 4 11 Drop 7 | . 1 6 Fire 133 | . 41 92 Melee . | . . . Ram . | . . . Kick . | . . . Crush . | . . . Escape Stasis . | . . . Rewire . | . . . Trap . | . . . Miscellaneous . | . . . Route ------- -11/Scrapyard -10/Materials (discovered 2 exits: *Mat / [*Min]) -9/Materials (discovered 1 exit: *Min) History --------- Turn | Location | Event 30 | -11/Scrapyard | Discovered new exit (range 15) 45 | -11/Scrapyard | Entered Materials 197 | -10/Materials | Discovered new exit (range 13) 308 | -10/Materials | Build established: Mutant 607 | -10/Materials | Discovered new exit (range 9) 661 | -10/Materials | Entered another Materials area 661 | -9/Materials | Evolved 2 slots: Utility x2 813 | -9/Materials | Lost 5 parts (1p2n1u1w) 1143 | -9/Materials | Core integrity fell below 50% 1228 | -9/Materials | Discovered new exit (range 14) 1394 | -9/Materials | Identified exit to Mines 1438 | -9/Materials | Build established: Scavenger-Mutant 1612 | -9/Materials | Core integrity fell below 20% 1633 | -9/Materials | Destroyed by S-10 Pest with Light Assault Rifle Last Messages --------------- Hvy. Particle Gun Adv. Beam Cannon 01568_ ALERT: Suspicious activity at Terminal M010. Dispatching Investigation squad. 01569_ R-06 Scavenger collects Lgt. Ion Engine. 01587_ Hover Unit destroyed. 01595_ Lgt. Armor Plating destroyed. 01596_ K-01 Serf destroyed. 01599_ G-47 Trooper suffers critical hit (Burn). 01599_ G-47 Trooper destroyed. 01600_ Hover Unit destroyed. 01601_ Overheating: System interference. 01601_ Particle Gun temporarily disabled. 01606_ U-05 Engineer destroyed. 01608_ G-34 Mercenary destroyed. 01619_ C-30 ARC bursts open, deploying its payload. 01619_ S-10 Pest unfolds itself. 01622_ Hvy. Assault Rifle destroyed. 01628_ Acquired Wheel. Map ----- +----------------------------------------------------+ | ??# + =+ #??????????? | | ??# # # #??????????? | | ??# """ """ # ##+####+### #??????????? | | ??# """ """ ## ### ] # #??????????? | | ??# """ """ ## #?#[[ ###########??????????? | | ??############ #?#[[ !###########??????????? | | ?????????????# #?#[ # ] """ #??????????? | | ????????????## #?######+### "T" #??????????? | | ????????????# ##### # " " #??????????? | | ????????????# ^ #[ #??????????? | | ????????????# ^ T %+%[ """ #??????????? | | ????????????# ^ #![[[ """ #??????????? | | ????????????# ##### # [[[ """ ##?????????? | | ????????????#######???## ## [[[ #?????????? | | ???????????????????????#k #############?????????? | | ???????????????????????# #?????????????????????? | | ???????????????????????# #?????????????????????? | | ??###########???????#### ##????????????????????? | | ??# "" #???????#" #????????????????????? | | ??# ""S #???????#"" #????????????????????? | | ??# "" #???????#|| #????????????????????? | | ??# """ #???????#"" > #????????????????????? | | ??# """ #???????#!! [ #????????????????????? | | ??# """ #???????#"" % |=#????????????????????? | | ??# #???????#" =!%*#????????????????????? | | ??# #???????####%@=##????????????????????? | | ??#####+#####??????????# =%#?????????????????????? | | ##### #????????????# *#?????????????????????? | | #????###?????# %#?????????????????????? | | " #???? ???## !##?????#########??????? | | #????? ?# ##### ??????? | | ##### #?????? """ # ^^ #??????????? | | ????## ##???????? " + ^^ #??????????? | | ?????# #????? """ # s ^^ #??????????? | | ?????# #??# # ##### #??????????? | | ?????# #???? [ ?### s #?????#+###??????????? | | ?????# #??? ???# #????????????????????? | | ?????# #???######+#???# gs#????????????????????? | | ?????# #????????# #???# g #????????????????????? | | ####?# #????????# #???#s #????????????????????? | | #?# #????????# #???# #????????????????????? | | #?# ########## ##### #????????????????????? | | ### #"T"#"T"## #"T"# #????????????????????? | | # % ##???????????????????? | | + % "T#???????????????????? | | "" # """ """ """ """ "%##???????????????????? | | T" ## """ """ """ """ "#????????????????????? | | "" ## """ """ """ """ #????????????????????? | | ## """ """ """ = #????????????????????? | | ##### %#????????????????????? | +----------------------------------------------------+ Best States ------------- Heat Dissipation 64 Energy Generation 12 Energy Capacity 265 Matter Stores 300 Matter Capacity 300 Sight Range 18 Terrain Scan Density 10 Armor Coverage 150 Power Shielding 33 Evasion (%) 53 Targeting Accuracy 5 Offensive Hacking 10 Item Schematics ----------------- None Robot Schematics ------------------ None Fabricated ------------ Nothing Repaired ---------- Nothing Alien Tech Used ----------------- None Achievements -------------- True Hacker Challenges ------------ None Game ------ Seed HardcellFluxShearcannon Manual? 0 Play Time 00:16:59 Cumulative 18.9 hours Start 2025.07.14 @ 12:36:47 End 2025.07.14 @ 12:53:48 Sessions 1 Manual Loads 0 Difficulty Rogue Special Mode None Game No. 37 Rogue 37 Adventurer 0 Explorer 0 Win Type - Total 0 Types 0/0/0/0/0/0/0/0/0/0 Lore% 10 Gallery% 19 Achievement% 20 Wizard Run 0 Options --------- Layout 2 ASCII 0 Keyboard 0 Movement Mouse Keybinds 1 Fullscreen 2 Font 32/Smallcaps Map View 50x44 Zoom Use 0% Tactical HUD 1 Map Filters NONE Filters NONE Steam 1 RUN: d002006b-3986-49b0-a277-8881dd42ae13